bitfinex/quotes_ETHUSD_20260107
["timestamp","ask_amount","ask_price","bid_price","bid_amount"]
[1767749735743,0.0352163,3248.1,3247.8,0.97649761]
[1767749735943,0.0352163,3248.1,3247.8,0.94570754]
[1767749736346,0.806,3248.5,3247.9,0.94570754]
[1767749736672,3.8838273,3249.1,3248.1,0.94570754]
[1767749736871,6.9616546,3249.1,3248.1,0.94570754]
[1767749737751,10.0394819,3249.1,3247.8,0.4026756]
[1767749737954,0.9635127,3249.0,3247.7,0.002]
[1767749738275,6.15611918,3248.8,3247.7,0.002]
[1767749738843,6.15611918,3248.8,3247.7,0.94770754]
[1767749739639,7.11963188,3248.8,3247.7,0.94770754]
[1767749740264,7.12001088,3248.6,3247.7,0.00099902]
[1767749740484,7.12001088,3248.6,3247.4,3.08135827]
[1767749740485,2.48151379,3248.5,3247.4,0.002]
[1767749741756,1.51800109,3248.5,3247.5,0.94570754]
[1767749741974,1.13967255,3249.2,3247.5,0.94570754]
[1767749742149,6.96155076,3249.1,3247.5,0.94570754]
[1767749742349,6.15555076,3249.1,3247.7,0.94570754]
[1767749742552,6.15555076,3249.1,3247.9,0.94570754]
[1767749742751,6.15555076,3249.1,3247.6,6.15839388]
[1767749742752,0.806,3249.0,3248.0,0.94570754]
[1767749742952,0.69615508,3248.9,3247.7,0.94570754]
[1767749743154,0.806,3249.0,3247.9,0.94570754]
[1767749744277,0.001,3249.3,3248.5,0.94570754]
[1767749746391,0.001,3249.3,3248.7,0.94570754]
[1767749746898,0.001,3249.9,3249.0,0.94570754]
[1767749748386,0.001,3249.9,3249.2,0.94570754]
[1767749750490,0.001,3249.9,3249.2,4.02337534]
[1767749750901,3.13797466,3250.6,3249.2,4.02337534]
[1767749750902,0.9635127,3251.2,3249.6,0.94570754]
[1767749751195,0.9635127,3250.7,3249.2,7.10105599]
[1767749751492,0.9635127,3250.7,3249.2,4.02337534]
[1767749751661,0.9635127,3250.7,3249.2,7.10105599]
[1767749751861,0.9635127,3250.5,3249.2,4.81408094]
[1767749752097,0.9635127,3250.5,3249.2,7.89176159]
[1767749752332,0.9635127,3250.5,3248.8,4.02369245]
[1767749752600,0.9635127,3250.3,3248.9,3.07796484]
[1767749752894,0.806,3250.2,3248.9,7.10163722]
[1767749753092,0.806,3250.2,3249.0,0.94570754]
[1767749753261,0.806,3250.2,3249.1,0.94570754]
[1767749754695,0.806,3250.2,3249.3,0.91194692]
[1767749756504,0.21735485,3250.9,3249.3,0.94272277]
[1767749756798,4.09945969,3250.9,3249.5,0.94570754]
[1767749756974,1.02335485,3250.9,3249.5,0.94570754]
[1767749757182,4.09942609,3250.9,3249.7,0.94570754]
[1767749757392,1.02335485,3250.9,3249.7,0.94570754]
[1767749758087,0.21735485,3250.9,3249.7,0.94570754]
[1767749758699,0.21735485,3250.9,3249.9,0.94619471]
[1767749759109,3.29344457,3250.9,3249.9,0.94619471]
[1767749759306,0.32934446,3250.8,3249.8,3.07711243]
[1767749759508,0.21735485,3250.9,3249.9,0.94619471]
[1767749759711,3.07576347,3251.3,3249.9,0.94619471]
[1767749759874,3.07569279,3251.3,3249.9,0.94619471]
[1767749760075,6.15138558,3251.3,3249.9,0.94619471]
[1767749760276,0.001,3250.6,3249.9,0.94619471]
[1767749760484,0.001,3250.6,3250.1,0.94619471]
[1767749760683,0.001,3250.6,3250.2,0.94619471]
[1767749762807,0.001,3250.6,3250.2,4.02283744]
[1767749763603,0.91771986,3251.2,3250.2,3.07664273]
[1767749764928,0.91771986,3251.0,3249.6,0.9382631]
[1767749765128,0.91771986,3251.0,3249.8,3.07704737]
[1767749765306,0.91771986,3251.0,3249.6,3.07723668]
[1767749765625,0.91771986,3251.0,3249.4,0.806]
[1767749765798,0.91771986,3251.0,3249.5,3.07932634]
[1767749765994,0.91771986,3250.8,3249.5,0.002]
[1767749766194,0.91771986,3250.6,3249.5,0.002]
[1767749766922,0.91771986,3250.6,3249.5,0.03277396]
[1767749767129,0.91771986,3250.6,3249.6,6.15460364]
[1767749767433,0.91771986,3250.6,3249.7,0.03077207]
[1767749767830,0.806,3250.7,3249.7,0.96903517]
[1767749768037,0.806,3250.7,3249.7,0.9382631]
[1767749768235,0.91771986,3250.6,3249.5,0.002]
[1767749768602,0.91771986,3250.6,3249.5,3.07939069]
[1767749769425,0.91771986,3250.6,3249.6,0.03077301]
[1767749769636,0.806,3250.7,3249.6,0.71260186]
[1767749769838,0.91771986,3250.6,3249.6,0.71260186]
[1767749771736,3.99414492,3250.6,3249.7,3.07720712]
[1767749771903,3.99414492,3250.6,3249.6,3.78986107]
[1767749772228,4.7817858,3250.6,3249.6,3.78986107]
[1767749772446,4.7817858,3250.6,3249.6,6.86716289]
[1767749772833,4.7817858,3250.6,3249.6,3.78986107]
[1767749773036,7.85821086,3250.6,3249.6,3.78989486]
[1767749773239,7.85821086,3250.6,3249.6,0.71260186]
[1767749773547,0.86642109,3250.5,3249.9,0.002]
[1767749774656,7.01933922,3250.5,3249.9,0.002]
[1767749775560,3.94290572,3250.5,3249.9,0.002]
[1767749776059,7.01939035,3250.5,3249.9,0.002]
[1767749776355,3.94290572,3250.5,3249.9,0.002]
[1767749776529,0.807,3250.7,3249.9,0.002]
[1767749776735,3.88329572,3250.7,3249.9,0.002]
[1767749776923,0.91771986,3250.6,3249.9,0.002]
[1767749777942,6.95959144,3250.7,3249.5,0.002]
[1767749777943,0.91771986,3250.4,3249.5,0.002]
[1767749778153,0.91771986,3250.4,3248.9,3.07792895]
[1767749778456,0.91771986,3250.2,3248.9,3.07792895]
[1767749778652,0.91771986,3250.1,3249.0,3.07785063]
[1767749779061,0.91771986,3250.1,3248.7,1.7442631]
[1767749779462,0.91771986,3250.1,3249.0,3.0777932]
[1767749779756,0.91771986,3250.1,3248.9,3.07793607]
[1767749780163,0.91771986,3249.9,3248.8,3.07805959]
[1767749781389,0.91771986,3249.9,3248.8,6.15611918]
[1767749781676,0.91771986,3249.9,3248.8,3.07805959]
[1767749782179,0.91771986,3249.9,3248.7,4.01638467]
[1767749782376,6.15422486,3249.8,3248.7,4.01638467]
[1767749782952,0.91771986,3249.7,3248.7,4.01638467]
[1767749783170,0.70719447,3249.6,3248.6,3.07817377]
[1767749783343,1.62491433,3249.6,3248.6,3.07817377]
[1767749783761,1.62491433,3249.6,3248.5,3.07833734]
[1767749783969,1.62491433,3249.6,3248.3,0.002]
[1767749783970,0.91771986,3249.5,3248.3,0.002]
[1767749784343,0.91771986,3249.3,3248.3,0.002]
[1767749784545,0.70727023,3249.2,3248.3,0.9402631]
[1767749786362,3.07777538,3249.1,3248.3,0.002]
[1767749786765,3.05685654,3249.1,3248.3,0.002]
[1767749787086,0.91771986,3249.0,3247.9,0.002]
[1767749787256,0.91771986,3248.8,3247.9,0.002]
[1767749787489,0.91771986,3248.6,3247.4,0.002]
[1767749788125,0.91771986,3248.6,3247.2,1.42530028]
[1767749788285,0.91771986,3248.6,3247.2,0.002]
[1767749788482,0.806,3248.7,3247.2,0.002]
[1767749788483,0.91771986,3248.4,3247.2,0.002]
[1767749788698,0.91771986,3248.2,3247.2,0.002]
[1767749788869,0.91771986,3248.0,3247.2,0.002]
[1767749790215,0.91771986,3247.8,3247.2,0.002]
[1767749792008,3.07910213,3247.7,3247.2,0.002]
[1767749792211,4.77552714,3247.7,3247.2,0.002]
[1767749792507,1.69642501,3247.7,3247.2,0.002]
[1767749792912,0.806,3247.6,3247.0,0.002]
[1767749793075,0.98883668,3247.5,3246.5,0.002]
[1767749794194,6.15877316,3247.4,3246.5,0.002]
[1767749794393,0.98883668,3247.2,3246.2,0.00099902]
[1767749794594,0.98883668,3247.0,3246.2,0.00099902]
[1767749795685,0.98883668,3247.0,3246.1,0.002]
[1767749796212,0.806,3247.1,3246.1,0.002]
[1767749796213,0.98883668,3246.8,3246.1,0.002]
[1767749796399,0.71485583,3246.7,3246.1,0.002]
[1767749797312,7.1474202,3247.5,3246.1,0.94464483]
[1767749797482,0.806,3247.4,3246.3,0.94264483]
[1767749798113,0.806,3247.4,3246.1,0.002]
[1767749798114,0.806,3247.4,3246.6,3.08014538]
[1767749798301,3.88543414,3247.4,3246.5,4.02284479]
[1767749798508,3.88543414,3247.4,3246.5,0.94264483]
[1767749798888,9.29118116,3247.4,3246.1,0.002]
[1767749799092,0.98883668,3247.3,3246.1,0.002]
[1767749799291,0.98883668,3247.3,3246.5,3.08018327]
[1767749799524,0.001,3246.7,3246.5,3.08018327]
[1767749799704,0.001,3246.7,3246.5,4.0228281]
[1767749800085,0.001,3246.7,3246.2,6.16104984]
[1767749800294,0.001,3246.7,3246.3,0.71056947]
[1767749800492,0.001,3246.7,3246.3,1.6532143]
[1767749802629,0.001,3246.7,3246.5,0.94264483]
[1767749802835,0.001,3246.7,3246.6,0.03080145]
[1767749803024,0.001,3246.7,3246.5,0.94264483]
[1767749803545,0.001,3246.7,3246.3,3.79093433]
[1767749803746,0.001,3246.7,3246.3,3.08036486]
[1767749804110,0.001,3246.7,3246.3,3.08042263]
[1767749804313,0.001,3246.7,3246.1,0.002]
[1767749804540,0.001,3246.7,3246.3,3.08041272]
[1767749804742,0.001,3246.7,3246.1,0.94464483]
[1767749807036,0.001,3246.7,3246.2,7.08185759]
[1767749807342,0.001,3246.7,3246.2,7.79024335]
[1767749807851,0.001,3246.7,3246.2,4.70971843]
[1767749809651,0.001,3246.7,3246.3,0.92080775]
[1767749810834,0.001,3246.7,3246.4,0.03080335]
[1767749811160,0.001,3246.7,3246.6,4.00095313]
[1767749811345,1.77239567,3247.4,3246.6,6.86840992]
[1767749811549,1.77239567,3247.4,3246.6,6.16029076]
[1767749812676,1.77239567,3247.4,3246.3,0.92080775]
[1767749812833,0.96539567,3247.3,3246.1,0.002]
[1767749813031,0.96539567,3247.1,3246.1,0.002]
[1767749813237,6.1591525,3247.2,3245.8,0.002]
[1767749813238,0.96539567,3246.9,3245.8,0.002]
[1767749813438,0.96539567,3246.7,3245.8,0.002]
[1767749813852,0.96539567,3246.7,3245.3,0.002]
[1767749815136,0.96539567,3246.5,3245.3,0.002]
[1767749817270,0.96539567,3246.3,3245.3,0.002]
[1767749817471,0.96539567,3246.1,3245.3,0.002]
[1767749817697,1.5196066,3246.2,3245.3,0.002]
[1767749817990,0.7126066,3246.2,3245.3,0.92280775]
[1767749818296,1.5196066,3246.2,3245.3,0.92280775]
[1767749819275,1.5196066,3246.2,3245.3,4.00409273]
[1767749819493,0.807,3246.2,3245.3,4.00409273]
[1767749819794,3.88753534,3246.2,3245.3,4.00409273]
[1767749820363,3.08005793,3246.7,3245.4,0.92080775]
[1767749820584,3.07976593,3247.0,3245.4,0.92080775]
[1767749820789,0.807,3246.9,3245.6,0.92080775]
[1767749820992,0.807,3246.9,3245.8,0.92080775]
[1767749821328,0.96539567,3246.6,3245.3,3.08328498]
[1767749821471,0.71254967,3246.5,3245.4,3.08125108]
[1767749821802,0.92263318,3246.4,3245.3,0.002]
[1767749821970,0.92263318,3246.2,3245.3,0.002]
[1767749822698,0.92263318,3246.2,3245.0,0.002]
[1767749823276,0.92263318,3246.0,3245.0,0.002]
[1767749823476,1.63102046,3245.9,3245.0,0.002]
[1767749823876,0.70838728,3245.9,3245.0,0.96375586]
[1767749824082,3.08056367,3246.2,3245.0,0.96375586]
[1767749824279,0.92961997,3246.1,3245.0,0.002]
[1767749825484,6.16108859,3246.2,3245.0,0.002]
[1767749825485,0.92961997,3245.9,3245.0,0.002]
[1767749825684,0.807,3245.8,3245.0,0.002]
[1767749826423,0.807,3245.8,3245.0,0.96375586]
[1767749826619,0.807,3245.8,3245.0,1.98486433]
[1767749826803,0.92961997,3246.7,3245.1,0.99257155]
[1767749826987,3.1409547,3247.5,3245.1,0.99257155]
[1767749826988,3.07986079,3246.9,3245.1,0.99257155]
[1767749827316,3.07948141,3247.3,3245.5,0.96175586]
[1767749827516,0.807,3247.4,3245.7,0.96175586]
[1767749827715,0.807,3247.4,3245.9,0.96175586]
[1767749828284,0.807,3247.4,3246.1,0.96175586]
[1767749829420,3.88643391,3247.4,3246.3,0.96175586]
[1767749829721,3.88639521,3247.4,3246.3,0.96175586]
[1767749830489,0.92961997,3246.3,3244.1,0.002]
[1767749830691,0.92961997,3246.3,3243.0,0.16046939]
[1767749830692,0.92961997,3245.7,3243.0,0.16046939]
[1767749830946,0.92961997,3244.7,3243.3,0.06159437]
[1767749831108,0.92961997,3245.3,3243.7,0.06159437]
[1767749831305,1.06652256,3245.6,3243.8,1.81398919]
[1767749831306,0.97476731,3244.9,3243.8,1.81398919]
[1767749831508,3.73481605,3244.8,3243.8,0.96175586]
[1767749831818,3.73481605,3244.8,3242.5,0.96175586]
[1767749831819,1.63233196,3244.5,3242.5,0.96175586]
[1767749832014,1.63233196,3244.5,3242.8,0.06159437]
[1767749832015,2.85907277,3243.1,3242.8,0.06159437]
[1767749832318,3.51200555,3244.4,3242.8,0.06159437]
[1767749832319,0.92961997,3244.4,3242.9,3.08365968]
[1767749832506,0.65180902,3244.3,3242.9,3.39819606]
[1767749832718,0.65180902,3244.2,3242.9,3.39819606]
[1767749832919,0.65180902,3244.1,3242.9,0.31453638]
[1767749833122,0.65180902,3244.0,3242.7,0.807]
[1767749833841,6.16541816,3243.9,3242.7,0.807]
[1767749834037,0.65180902,3243.8,3242.7,0.807]
[1767749835122,0.92961997,3243.7,3242.7,0.80499607]
[1767749835316,0.92961997,3243.5,3242.7,0.80499607]
[1767749835703,6.16636862,3243.4,3242.9,0.002]
[1767749836140,3.08318431,3243.4,3242.9,0.002]
[1767749836641,6.16636862,3243.4,3242.9,0.002]
[1767749836940,6.16636862,3243.4,3242.0,3.08451403]
[1767749836941,0.92961997,3243.3,3242.0,3.08451403]
[1767749837237,0.92961997,3243.3,3241.9,0.807]
[1767749837238,0.92961997,3243.2,3242.1,0.3891514]
[1767749837559,0.92961997,3243.2,3241.6,0.002]
[1767749837850,0.92961997,3242.7,3240.5,3.08592883]
[1767749838027,0.92961997,3242.5,3240.5,3.08592883]
[1767749838231,0.92961997,3242.3,3240.5,6.20273178]
[1767749838808,0.92961997,3242.1,3240.5,6.20273178]
[1767749839212,0.92961997,3242.1,3240.5,6.17187235]
[1767749839417,1.10328197,3242.1,3240.6,0.61718724]
[1767749839743,3.89149173,3242.1,3240.7,6.97850614]
[1767749839944,6.97598346,3242.1,3240.7,6.97850614]
[1767749840863,1.73661997,3242.0,3240.7,0.807]
[1767749841171,0.92961997,3242.2,3240.8,0.03085657]
[1767749841327,0.92961997,3242.2,3240.7,0.83785753]
[1767749841631,0.92961997,3242.1,3240.8,1.07125622]
[1767749841836,6.16903146,3242.0,3240.9,3.08556265]
[1767749842165,3.08451573,3242.0,3240.9,3.08556265]
[1767749842472,3.08404009,3242.5,3240.9,10.24929943]
[1767749842753,0.40136601,3242.4,3241.0,1.13205557]
[1767749843262,1.33098598,3242.4,3241.0,1.13205557]
[1767749843432,1.33098598,3242.4,3241.1,0.807]
[1767749843947,3.0835646,3243.0,3241.4,0.96175586]
[1767749844158,0.03022034,3242.9,3241.5,0.03084991]
[1767749844476,0.35059363,3243.1,3241.5,0.99260577]
[1767749844677,0.03022034,3243.0,3241.5,0.99260577]
[1767749844853,3.43409256,3243.1,3241.5,0.99260577]
[1767749844854,0.35059363,3243.1,3241.5,0.99260577]
[1767749845466,0.03022034,3243.0,3241.5,0.99260577]
[1767749845828,0.03022034,3243.0,3241.6,10.21644488]
[1767749846058,0.03022034,3243.0,3241.7,1.86257749]
[1767749846258,0.35059363,3243.1,3241.7,2.82433335]
[1767749846470,0.03022034,3243.0,3241.7,2.82433335]
[1767749846928,0.03022034,3243.0,3241.7,2.79348534]
[1767749847128,0.03022034,3243.0,3241.7,2.74348534]
[1767749847328,0.03022034,3243.0,3241.8,1.19981744]
[1767749847977,3.08365968,3242.9,3241.7,3.89176092]
[1767749848132,0.03022034,3242.8,3241.7,3.89176092]
[1767749848335,0.03122034,3242.8,3241.7,6.9765621]
[1767749849261,0.03122034,3242.8,3241.7,7.93831796]
[1767749849461,0.001,3242.8,3241.7,3.89176092]
[1767749849666,0.03122034,3242.8,3241.8,0.69765726]
[1767749850060,3.08384987,3242.7,3241.8,0.69765726]
[1767749850263,3.08384987,3242.7,3241.7,0.807]
[1767749850264,0.03022034,3242.6,3241.7,0.807]
[1767749850464,0.03022034,3242.5,3241.7,0.807]
[1767749850859,0.03022034,3242.5,3241.7,3.89178301]
[1767749851079,0.001,3242.8,3241.7,0.807]
[1767749851382,0.001,3242.8,3241.8,6.16940308]
[1767749851570,0.001,3242.8,3241.9,1.62232278]
[1767749851772,0.001,3242.8,3242.0,0.95552762]
[1767749851959,0.35059363,3243.1,3242.0,0.95552762]
[1767749852160,0.35059363,3243.1,3242.1,9.25326177]
[1767749852673,0.35059363,3243.1,3242.1,6.16884118]
[1767749852981,1.26291339,3243.1,3242.2,0.807]
[1767749853151,1.29313373,3243.1,3242.2,0.807]
[1767749853344,1.26291339,3243.1,3242.2,0.807]
[1767749853545,4.34638617,3243.1,3242.2,0.807]
[1767749853779,0.91231976,3243.0,3242.2,0.807]
[1767749854074,0.91231976,3243.0,3242.3,0.76624893]
[1767749854241,0.91231976,3243.0,3242.4,3.0841352]
[1767749854944,0.91231976,3243.0,3242.4,6.1682704]
[1767749855148,0.91231976,3243.0,3242.4,3.0841352]
[1767749857198,0.35059363,3243.1,3242.4,3.0841352]
[1767749857491,0.35059363,3243.1,3242.5,0.69346127]
[1767749858092,0.35059363,3243.1,3242.5,0.72430167]
[1767749858291,3.99526044,3243.7,3242.5,3.77749926]
[1767749858495,1.59244492,3243.6,3242.6,0.807]
[1767749858694,0.9425401,3243.6,3242.6,0.807]
[1767749859380,0.65138823,3243.5,3242.6,0.807]
[1767749859577,0.65138823,3243.4,3242.6,0.807]
[1767749859894,0.65138823,3243.3,3242.6,0.807]
[1767749860188,0.03022034,3243.6,3242.7,0.69750781]
[1767749860391,3.7366743,3243.5,3242.7,0.69750781]
[1767749860598,0.65352067,3243.4,3242.7,0.54450781]
[1767749860891,1.56584043,3243.3,3242.8,0.807]
[1767749861097,0.68374101,3243.2,3242.7,0.809]
[1767749861296,0.65352067,3243.1,3242.7,0.809]
[1767749861480,0.65352067,3243.0,3242.7,0.809]
[1767749861797,0.65352067,3242.9,3242.7,0.809]
[1767749861970,0.65352067,3242.8,3242.7,0.809]
[1767749865519,0.65352067,3242.8,3242.7,0.73697886]
[1767749869122,0.57449231,3242.8,3242.7,0.73697886]
[1767749869292,0.001,3243.3,3242.7,3.82082873]
[1767749869495,0.001,3243.3,3242.7,0.73697886]
[1767749869736,0.30942438,3243.3,3242.7,3.82082152]
[1767749869919,0.001,3243.3,3242.7,3.82082152]
[1767749870601,0.001,3243.3,3242.7,7.82935386]
[1767749870798,0.001,3243.3,3242.7,4.74550399]
[1767749871434,0.001,3243.3,3242.8,0.92468247]
[1767749871802,0.001,3243.3,3242.8,0.95552001]
[1767749872115,0.001,3243.3,3242.4,0.92668247]
[1767749872442,0.001,3243.3,3242.5,3.8920277]
[1767749872930,0.001,3243.3,3242.6,3.0839435]
[1767749873139,0.001,3243.3,3242.7,3.08384898]
[1767749873307,0.001,3243.3,3242.6,3.08394498]
[1767749873501,0.001,3243.3,3242.6,3.78174332]
[1767749873822,0.001,3243.3,3242.6,6.8656883]
[1767749874022,0.001,3243.3,3242.7,0.92668247]
[1767749874322,0.001,3243.3,3242.8,0.95552001]
[1767749874751,0.001,3243.3,3242.8,0.03083754]
[1767749874960,0.001,3243.3,3242.9,0.807]
[1767749874961,0.91331976,3243.3,3242.9,0.807]
[1767749875095,0.9425401,3243.2,3242.9,0.807]
[1767749875443,0.001,3243.3,3242.7,0.92668247]
[1767749875596,0.001,3243.3,3243.1,0.92468247]
[1767749875797,0.95549432,3244.6,3243.2,1.09785072]
[1767749876135,0.04317456,3244.3,3243.2,1.09785072]
[1767749876335,0.04317456,3244.1,3243.2,1.09785072]
[1767749876506,0.03022034,3244.0,3243.2,1.09785072]
[1767749876694,0.03022034,3244.0,3243.2,0.92468247]
[1767749876899,0.04317456,3243.9,3243.1,0.807]
[1767749877110,0.04317456,3243.9,3243.1,1.73168247]
[1767749877327,0.03022034,3243.8,3243.1,1.73168247]
[1767749877531,0.04317456,3243.7,3243.1,0.807]
[1767749878396,0.03022034,3243.6,3243.1,0.807]
[1767749878603,0.04317456,3243.5,3243.1,0.807]
[1767749879007,0.36311284,3243.7,3243.1,0.807]
[1767749879536,0.31993828,3243.7,3243.1,3.89046434]
[1767749879855,6.20864134,3243.9,3243.1,0.807]
[1767749880008,0.04317456,3243.6,3242.8,0.807]
[1767749880333,0.04317456,3243.4,3242.8,0.807]
[1767749880836,0.04317456,3243.4,3242.7,0.002]
[1767749880837,0.04317456,3243.2,3242.7,0.002]
[1767749881135,0.0733949,3243.4,3242.7,0.002]
[1767749881303,0.03022034,3243.4,3242.7,0.002]
[1767749881505,3.93425335,3243.6,3242.7,0.92895558]
[1767749881711,0.42364568,3243.5,3242.7,0.92895558]
[1767749882836,0.39342534,3243.5,3242.8,0.95779312]
[1767749883038,3.8908475,3243.8,3242.8,0.92695558]
[1767749883237,6.973695,3243.8,3242.8,0.92695558]
[1767749883440,3.8908475,3243.8,3242.8,0.92695558]
[1767749883634,0.04317456,3243.7,3242.7,0.002]
[1767749883836,0.03022034,3243.6,3242.7,0.002]
[1767749884022,0.73492933,3243.6,3242.7,0.002]
[1767749884541,0.73492933,3243.6,3242.7,0.92895558]
[1767749884841,0.03022034,3243.6,3242.9,0.92695558]
[1767749885161,0.04317456,3243.7,3242.9,0.92695558]
[1767749885352,0.04317456,3244.3,3242.9,0.92695558]
[1767749885655,3.08261405,3244.0,3243.1,4.01040048]
[1767749885845,0.03022034,3243.9,3243.1,4.01040048]
[1767749886032,0.001,3243.3,3243.1,4.01040048]
[1767749886233,0.001,3243.3,3243.1,4.71980405]
[1767749886426,0.001,3243.3,3243.2,0.92695558]
[1767749886656,3.08247582,3244.2,3243.3,0.92695558]
[1767749886861,3.12535763,3244.5,3243.3,0.92695558]
[1767749887013,0.03022034,3244.4,3243.3,0.95778837]
[1767749887213,0.04317456,3244.3,3243.3,0.95778837]
[1767749887714,3.12558121,3244.3,3243.4,3.08318431]
[1767749888436,3.15580155,3244.3,3243.4,3.08318431]
[1767749888634,3.15580155,3244.3,3243.4,4.01013989]
[1767749889143,3.15580155,3244.3,3243.5,0.92695558]
[1767749889349,3.12558121,3244.3,3243.5,0.92695558]
[1767749890045,3.15580155,3244.3,3243.5,0.92695558]
[1767749893625,3.15580155,3244.3,3243.3,0.03083279]
[1767749893626,0.04317456,3244.1,3243.3,0.03083279]
[1767749893839,0.04317456,3243.7,3243.1,0.92695558]
[1767749894547,3.0829942,3243.6,3242.7,0.92895558]
[1767749894747,3.0829942,3243.6,3242.8,0.92695558]
[1767749894948,0.04317456,3243.5,3242.8,0.92695558]
[1767749895245,0.04317456,3243.5,3242.7,3.08583501]
[1767749895648,0.04317456,3243.5,3242.7,7.09664046]
[1767749895953,0.04317456,3243.5,3242.8,0.92695558]
[1767749896134,0.04317456,3243.5,3242.9,0.03083659]
[1767749896331,0.04317456,3243.9,3243.0,0.92695558]
[1767749896533,0.9985052,3244.5,3243.3,0.92695558]
[1767749896739,0.04317456,3244.2,3243.4,0.92695558]
[1767749896950,3.08227154,3244.4,3243.4,0.92695558]
[1767749897150,0.95533064,3244.8,3243.4,0.92695558]
[1767749897355,0.04317456,3244.5,3243.6,0.92695558]
[1767749897852,3.93294054,3244.9,3243.8,0.92695558]
[1767749897853,0.04317456,3244.6,3243.8,0.92695558]
[1767749898154,0.04317456,3244.2,3243.8,0.92695558]
[1767749898327,0.04317456,3244.2,3243.3,0.92695558]
[1767749898522,0.04317456,3244.0,3243.4,3.08318431]
[1767749898821,0.04317456,3244.0,3243.5,0.92695558]
[1767749899042,0.04317456,3244.2,3243.5,0.92695558]
[1767749899353,3.4407893,3244.6,3243.7,0.92695558]
[1767749899354,3.12522373,3244.6,3243.7,0.92695558]
[1767749899555,0.04317456,3244.4,3243.7,0.92695558]
[1767749900753,0.04317456,3244.4,3243.9,0.92695558]
[1767749902059,0.04317456,3244.6,3243.9,0.92695558]
[1767749902253,0.04317456,3244.4,3244.0,0.71233918]
[1767749902559,0.04317456,3244.4,3243.7,3.08286014]
[1767749902858,0.04317456,3244.4,3243.7,0.92695558]
[1767749904841,0.04317456,3244.4,3243.8,4.00975969]
[1767749905037,0.04317456,3244.4,3243.9,0.92695558]
[1767749906758,0.04317456,3244.2,3243.3,0.92695558]
[1767749907056,0.04317456,3244.0,3243.5,0.92695558]
[1767749907229,0.36005278,3244.0,3243.5,0.92695558]
[1767749907429,0.04317456,3244.0,3243.5,0.92695558]
[1767749911159,0.001,3244.1,3243.5,0.92695558]
[1767749912162,0.03588502,3244.2,3243.5,0.92695558]
[1767749912666,0.03022034,3244.4,3243.6,0.90234034]
[1767749912860,3.1252644,3244.6,3243.6,0.93317028]
[1767749913047,0.04317456,3244.4,3243.6,0.90234034]
[1767749913439,0.03022034,3244.5,3243.6,0.90234034]
[1767749914267,3.11243172,3244.5,3243.7,0.90234034]
[1767749914468,0.04317456,3244.4,3243.7,0.90234034]
[1767749914638,0.04317456,3244.2,3243.4,0.90234034]
[1767749914843,0.04317456,3244.0,3243.4,0.90234034]
[1767749915197,0.04317456,3244.0,3243.2,0.002]
[1767749915198,0.04317456,3243.8,3243.2,0.002]
[1767749915367,0.04317456,3244.0,3243.2,0.002]
[1767749915579,0.04317456,3243.8,3243.2,0.002]
[1767749916258,0.04317456,3244.0,3243.3,0.90234034]
[1767749916554,3.12579323,3244.0,3243.3,0.90234034]
[1767749917965,6.91737369,3244.0,3243.3,0.90234034]
[1767749918566,3.83475502,3244.0,3243.3,0.90234034]
[1767749919767,0.62378177,3244.3,3243.4,0.93317218]
[1767749919969,0.04317456,3244.7,3243.4,0.93317218]
[1767749920147,3.08185404,3244.8,3243.4,0.93317218]
[1767749920466,3.11207438,3244.8,3243.4,0.93317218]
[1767749920639,3.11207438,3244.8,3243.7,0.90234034]
[1767749920835,3.08179589,3244.9,3243.9,0.90234034]
[1767749921069,0.04317456,3245.1,3243.9,0.90234034]
[1767749921245,6.19363978,3245.0,3243.9,0.90234034]
[1767749921442,0.04317456,3244.5,3243.8,0.03082804]
[1767749921645,0.03022034,3244.7,3243.9,0.90234034]
[1767749921839,0.03022034,3244.8,3243.9,0.90234034]
[1767749922769,3.11212799,3244.8,3243.9,3.98499086]
[1767749923278,3.11212799,3244.8,3244.0,0.90234034]
[1767749924968,6.19403564,3244.8,3244.0,0.90234034]
[1767749925150,3.81664901,3244.8,3244.0,0.90234034]
[1767749927473,6.89855666,3244.8,3244.0,0.90234034]
[1767749927696,6.86833632,3244.8,3244.0,0.90234034]
[1767749927847,0.03022034,3244.7,3244.0,0.90234034]
[1767749928978,3.78642867,3244.8,3244.0,3.9849543]
[1767749929278,3.78642867,3244.8,3244.1,0.90234034]
[1767749929791,6.86833632,3244.8,3243.8,3.48438791]
[1767749929999,0.72439346,3244.7,3243.8,4.38672825]
[1767749930494,0.72439346,3244.7,3243.9,0.90234034]
[1767749931264,0.03022034,3244.7,3243.9,0.90234034]
[1767749931894,3.12497652,3244.9,3244.0,3.08261405]
[1767749932185,3.88872592,3245.0,3244.1,0.90234034]
[1767749933287,3.91894626,3245.0,3244.1,0.90234034]
[1767749933453,4.62331755,3245.0,3244.1,0.90234034]
[1767749933656,4.62331755,3245.0,3244.1,3.98483739]
[1767749934872,0.99724878,3245.3,3244.2,0.93316458]
[1767749935073,6.23634324,3245.2,3244.2,0.90234034]
[1767749935395,7.20337168,3245.2,3244.2,0.90234034]
[1767749935584,0.001,3244.7,3244.2,0.90234034]
[1767749935901,0.001,3244.7,3244.2,1.30103101]
[1767749936569,0.001,3244.7,3244.3,0.90234034]
[1767749937495,0.001,3244.7,3244.1,0.002]
[1767749938293,0.001,3244.7,3244.1,0.91542768]
[1767749938596,0.001,3244.7,3244.1,3.99788808]
[1767749938797,0.001,3244.7,3244.2,0.39978881]
[1767749939398,0.001,3244.7,3244.2,3.48219174]
[1767749940081,0.001,3244.7,3244.2,0.39978881]
[1767749940282,0.001,3244.7,3244.2,3.48220987]
[1767749940597,3.08118933,3245.5,3244.3,0.94425097]
[1767749940767,4.04596054,3245.6,3244.5,0.91342768]
[1767749940968,0.96485701,3245.6,3244.6,0.94424812]
[1767749941189,4.04595658,3245.6,3244.6,0.91342768]
[1767749941390,4.04595658,3245.6,3244.7,0.91342768]
[1767749941391,0.04317456,3245.6,3244.7,0.91342768]
[1767749941595,0.04317456,3245.2,3243.8,1.32081164]
[1767749941766,0.95358846,3245.1,3244.1,3.47465214]
[1767749941969,0.96654268,3245.0,3244.1,0.3922]
[1767749942270,0.95358846,3244.9,3244.1,0.3922]
[1767749942465,0.95358846,3244.9,3244.1,0.002]
[1767749942466,0.04317456,3244.8,3244.1,0.002]
[1767749942701,0.04317456,3244.6,3244.1,0.002]